Cogmind - Beta 13 @@@ ROGUE MODE // 2024.06.01 @ 20:24:54 Player: lurie Result: Self-destructed Performance ------------- Evolutions (3) 1500 Regions Visited (6) 1200 Robots Destroyed (71) 355 Value Destroyed (1261) 1261 Prototype IDs (57) 1140 Alien Tech Used (0) 0 Bonus (158) 158 TOTAL SCORE: 5614 Bonus ------- Aligned with FarCom 300 Friendly Fire -142 Cogmind --------- Core Integrity 597/700 Matter 106/300 Energy 240/240 System Corruption 11% Temperature Cool (42) Movement Treading (317) Ox2 Location -7/Factory Parts ------- > --- POWER (1) -------- Nuclear Core > --- PROPULSION (4) --- Armored Treads Advanced Treads > --- UTILITY (6) ------ Huge Storage Unit Trap Scanner > --- WEAPON (2) ------- Heavy Laser Rocket Launcher > --- INVENTORY (25) --- Light Nuclear Core Aerolev Unit Improved Heat Sink Medium Storage Unit Large Matter Pod (150) Structural Scanner Advanced Visual Processing Unit Improved Terrain Scanner Advanced Terrain Scan Processor Melee Analysis Suite Particle Charger Improved Propulsion Shielding Heavy Laser Heavy Laser Heavy Laser Minigun High-powered Shotgun Improved Datajack Plasma Cutter Katana Longsword +1 Peak State ------------ > --- POWER ------------ Nuclear Core > --- PROPULSION ------- Armored Treads Advanced Treads Compact Wheel > --- UTILITY ---------- Huge Storage Unit Trap Scanner Machine Analyzer Medium Reflective Plating Hacking Suite System Shield > --- WEAPON ----------- Heavy Laser Minigun > --- INVENTORY -------- Light Nuclear Core Aerolev Unit Improved Heat Sink Medium Storage Unit Large Matter Pod Structural Scanner Advanced Visual Processing Unit Improved Terrain Scanner Advanced Terrain Scan Processor Melee Analysis Suite Particle Charger Improved Propulsion Shielding Heavy Laser Heavy Laser Heavy Laser High-powered Shotgun Rocket Launcher Improved Datajack Plasma Cutter Katana Longsword +1 [Rating: 40] Favorites ----------- Power Heavy Ion Engine Engine Heavy Ion Engine Power Core Nuclear Core Propulsion Advanced Treads Treads Advanced Treads Wheel Compact Wheel Hover Unit Aerolev Unit Flight Unit Improved Flight Unit Utility Huge Storage Unit Device Structural Scanner Storage Huge Storage Unit Processor Machine Analyzer Hackware Hacking Suite Protection Medium Reflective Plating Weapon Assault Rifle Energy Gun Precision Beam Rifle Ballistic Gun Assault Rifle Launcher Rocket Launcher Slashing Weapon Katana Special Melee Weapon Datajack Build | -11 -10 -10 -10 -9 -8 -7 ------- Run | Yrd Mat Min Exi Min Mat Fac Slots Evolved 6 | . . . . . 4 2 Power . | . . . . . . . Propulsion 2 | . . . . . 1 1 Utility 4 | . . . . . 3 1 Weapon . | . . . . . . . Parts Attached 81 | 7 3 6 1 2 54 8 Power 5 | 1 . 1 . . 3 . Engine 3 | 1 . 1 . . 1 . Core 2 | . . . . . 2 . Reactor . | . . . . . . . Propulsion 16 | 2 . 3 . . 11 . Treads 12 | 2 . 2 . . 8 . Leg . | . . . . . . . Wheel 2 | . . 1 . . 1 . Hover 1 | . . . . . 1 . Flight 1 | . . . . . 1 . Utility 32 | 2 3 1 . . 23 3 Device 18 | 1 2 . . . 13 2 Storage 4 | 1 1 1 . . 1 . Processor 2 | . . . . . 2 . Hackware 2 | . . . . . 2 . Protection 6 | . . . . . 5 1 Artifact . | . . . . . . . Weapon 28 | 2 . 1 1 2 17 5 Energy Gun 10 | 1 . 1 . 1 7 . Energy Cannon . | . . . . . . . Ballistic Gun 11 | 1 . . . 1 7 2 Ballistic Cannon . | . . . . . . . Launcher 3 | . . . . . 2 1 Special Weapon . | . . . . . . . Impact Weapon . | . . . . . . . Slashing Weapon 2 | . . . . . 1 1 Piercing Weapon . | . . . . . . . Special Melee Weapon 2 | . . . 1 . . 1 Unidentified Prototypes 9 | . . . . . 9 . Parts Lost 6 | . . . . . 2 4 Power . | . . . . . . . Propulsion 2 | . . . . . 1 1 Utility 4 | . . . . . 1 3 Weapon . | . . . . . . . Highest Loss Streak 4 | . . . . . 1 4 To Critical Strikes . | . . . . . . . Average Slot Usage (%) 97 | . 100 100 83 100 98 90 Engine 10 | . 14 14 14 14 8 . Treads 18 | . 28 22 14 14 17 15 Wheel 8 | . . 5 14 14 9 6 Device 11 | . 14 14 14 14 9 12 Storage 11 | . 14 14 14 14 9 7 Processor 4 | . . . . . 8 7 Hackware 6 | . . . . . 12 14 Protection 1 | . . . . . 3 2 Energy Gun 10 | . 14 14 . 14 10 7 Ballistic Gun 8 | . 14 14 . 13 6 6 Special Melee Weapon 1 | . . . 12 . . . Naked Turns . | . . . . . . . Heaviest Build 104 | 14 29 89 85 89 104 103 Greatest Support 40 | 40 40 40 16 16 16 16 Greatest Overweight (x) 6 | . . 5 5 5 6 6 Average Overweight (x) 3 | . . . 5 5 5 5 Largest Inventory Capacity 25 | 8 15 25 25 25 25 25 Average Capacity 21 | 7 8 16 25 25 25 25 Most Carried 25 | 4 11 18 23 24 25 21 Average Carried 19 | 2 5 13 22 22 23 21 Final Capacity 25 | 8 15 25 25 25 25 25 Final Carried 24 | 4 11 18 23 24 22 21 Class Distribution -------------------- 52% | Mutant 19% | Hacker-Mutant 15% | Skirmisher 11% | Hacker-Skirmisher Dominant Class ---------------- Mutant | -10/Materials Mutant | -10/Mines Mutant | -10/Exiles Mutant | -9/Mines Hacker-Mutant | -8/Materials Hacker-Skirmisher | -7/Factory Resources | -11 -10 -10 -10 -9 -8 -7 ----------- Run | Yrd Mat Min Exi Min Mat Fac Matter Collected 1626 | 312 133 269 . 53 841 18 Remotely . | . . . . . . . Salvage Created 2247 | 150 226 167 . 96 1422 186 Parts 156 | 13 23 19 . 4 86 11 Haulers Intercepted 3 | . . . . . 3 . Recyclers Shooed 3 | 1 1 . . 1 . . Parts Field Recycled . | . . . . . . . Retrieved Matter . | . . . . . . . Parts Self-Destructed . | . . . . . . . Prevented . | . . . . . . . Kills | -11 -10 -10 -10 -9 -8 -7 ------- Run | Yrd Mat Min Exi Min Mat Fac Combat Hostiles Destroyed 38 | . 6 4 . 3 24 1 Guns 34 | . 6 4 . 3 21 . AOE 3 | . . . . . 2 1 Classes Destroyed 12 | 3 2 1 . . 5 1 Worker 5 | 2 . . . . 2 1 Builder 4 | . . . . . 3 1 Tunneler 6 | 2 . 2 . . 2 . Hauler 3 | . . . . . 3 . Recycler 7 | 1 1 . . 1 3 1 Mechanic 1 | . . . . . 1 . Operator 1 | . . . . . 1 . Watcher 5 | . 3 . . . 2 . Swarmer 22 | . 6 2 . 3 11 . Grunt 10 | . . 2 . . 8 . Sentry 6 | . . . . . 5 1 Hunter 1 | . . . . . . 1 Best Kill Streak 9 | 2 9 5 . 4 4 3 Combat Bots Only 6 | . 6 4 . 3 4 1 Max Kills in Single Turn 2 | 1 1 2 . 1 2 1 Gunslinging . | . . . . . . . Exploded 1 | . . . . . 1 1 Melee . | . . . . . . . Uniques/NPCs Destroyed . | . . . . . . . Combat | -11 -10 -10 -10 -9 -8 -7 -------- Run | Yrd Mat Min Exi Min Mat Fac Hostile Shots Fired 251 | . 24 24 . 8 141 54 Missed 82 | . 6 8 . 2 40 26 Damage Taken 2286 | . 152 194 . 46 1167 727 Core 309 | . 17 39 . . 150 103 Absorbed by Shields 40 | . . . . . 40 . Ignored by Resistances 145 | . . . . . 135 10 Regen/Repaired (Parts) 471 | . 361 . . . 110 . Core Remaining (%) 83 | 100 . . . 77 72 . Volleys Fired 185 | 14 18 17 . 10 114 12 Largest 2 | 2 2 2 . 2 2 2 Hottest 122 | 60 60 60 . 83 122 102 Shots Fired 354 | 28 36 35 . 13 226 16 Gun 344 | 28 36 35 . 13 224 8 Cannon . | . . . . . . . Launcher 10 | . . . . . 2 8 Special . | . . . . . . . Kinetic 139 | 14 18 18 . 10 77 2 Thermal 205 | 14 18 17 . 3 147 6 Explosive 10 | . . . . . 2 8 Electromagnetic . | . . . . . . . Robot Hit Streak 13 | 4 7 5 . 3 13 8 Robot Miss Streak 5 | 4 5 2 . 1 4 1 Penetration Max . | . . . . . . . Secondary Targets 6 | . 3 2 . . 1 . Max Gunslinging Chain 1 | . 1 1 . . 1 . Shots Hit Robots 221 | 13 20 22 4 8 144 10 Core Hits 103 | 6 12 10 . 4 61 10 Critical Kills . | . . . . . . . Critical Parts Destroyed . | . . . . . . . Critical Strikes 14 | . . . . . 13 1 Burn 14 | . . . . . 13 1 Melee Attacks 12 | . . . 4 . 5 3 Impact . | . . . . . . . Slashing 6 | . . . . . 5 1 Piercing . | . . . . . . . Sneak Attacks 6 | . . . 4 . . 2 Combat Hostiles 2 | . . . . . . 2 Follow-up Attacks . | . . . . . . . Damage Inflicted 3879 | 152 282 292 . 120 2785 248 Guns 3554 | 152 276 284 . 120 2596 126 Cannons . | . . . . . . . Explosions 283 | . . . . . 161 122 Melee . | . . . . . . . Ramming 42 | . 6 8 . . 28 . Kinetic 1307 | 97 150 166 . 84 776 34 Thermal 2247 | 55 126 118 . 36 1820 92 Explosive 272 | . . . . . 161 111 Electromagnetic 11 | . . . . . . 11 Impact . | . . . . . . . Slashing . | . . . . . . . Piercing . | . . . . . . . Highest Corruption 11 | . 2 2 2 2 . 11 Average Corruption 2 | . 1 2 2 2 . 10 Corruption Purged . | . . . . . . . Corruption Blocked . | . . . . . . . Effects 23 | . 1 10 7 3 . 2 Message Errors 3 | . . 2 . 1 . . Matter Fused 6 | . 1 2 1 1 . 1 Heat Flow Errors 4 | . . 2 2 . . . Energy Discharges 1 | . . . 1 . . . Parts Rejected 1 | . . . . . . 1 Data Loss (minor) 2 | . . 1 . 1 . . Data Loss (major) 3 | . . 1 2 . . . Misfires 1 | . . 1 . . . . Alerts 2 | . . 1 1 . . . Overload Shots . | . . . . . . . Overflow Damage . | . . . . . . . Projectiles . | . . . . . . . Explosions . | . . . . . . . Melee . | . . . . . . . Knockbacks . | . . . . . . . Impact . | . . . . . . . Kinetic . | . . . . . . . Secondary . | . . . . . . . Self-Inflicted Damage 162 | . . . . . 11 151 Shots 5 | . . . . . . 5 Rammed 8 | . 1 1 . . 6 . Targets Rammed 8 | . 1 1 . . 6 . Kicked . | . . . . . . . Crushed . | . . . . . . . Highest Temperature 335 | . . 138 204 63 335 98 Average Temperature 102 | . . 38 96 32 116 32 Received Heat Transfer 710 | . . 96 . . 548 66 Effects 1 | . . . . . 1 . Interference 1 | . . . . . 1 . Siege Activations . | . . . . . . . Robots Corrupted . | . . . . . . . Combat Hostiles . | . . . . . . . Parts Fried . | . . . . . . . Impact Corruptions . | . . . . . . . Robots Melted 1 | . . . . . 1 . Combat Hostiles 1 | . . . . . 1 . Parts Melted 12 | . . . . . 12 . Heat Transferred 5719 | 125 275 250 . 74 4736 259 Parts Sabotaged . | . . . . . . . Parts Stolen . | . . . . . . . Parts Stripped . | . . . . . . . Power Chain Reactions . | . . . . . . . Alert | -11 -10 -10 -10 -9 -8 -7 ------- Run | Yrd Mat Min Exi Min Mat Fac Peak Influence 337 | 25 226 164 . 75 337 206 Initial 58 | . 16 9 . . 29 58 Average 70 | 8 84 9 . 18 103 76 Maximum Alert Level 1 | . 1 . . . 1 1 Low Security (%) 89 | 100 73 100 . 100 84 98 Level 1 10 | . 26 . . . 15 1 Level 2 . | . . . . . . . Level 3 . | . . . . . . . Level 4 . | . . . . . . . Level 5 . | . . . . . . . High Security . | . . . . . . . Max Security . | . . . . . . . Squads Dispatched 4 | . . 1 . . 2 1 Investigation 3 | . . 1 . . 2 . Extermination . | . . . . . . . Reinforcement 1 | . . . . . . 1 Assault . | . . . . . . . Garrison . | . . . . . . . Intercept . | . . . . . . . Searches Triggered . | . . . . . . . Construction Impeded 1 | . . . . . . 1 Haulers Reinforced . | . . . . . . . Active Scanning Responses . | . . . . . . . Cargo Convoy Interrupts . | . . . . . . . Stealth | -11 -10 -10 -10 -9 -8 -7 --------- Run | Yrd Mat Min Exi Min Mat Fac Distress Signals 6 | . 1 . . . 5 . Communications Jammed . | . . . . . . . Distress Signals . | . . . . . . . Times Spotted 62 | . 11 5 . 3 42 1 Peak Tracking Total 6 | . 6 4 . 3 4 1 Tactical Retreats 4 | . . 2 . . 2 . Traps | -11 -10 -10 -10 -9 -8 -7 ------- Run | Yrd Mat Min Exi Min Mat Fac Traps Triggered 3 | . 2 . . . 1 . Indirectly . | . . . . . . . Trap Hack Attempts . | . . . . . . . Triggered . | . . . . . . . Disarmed . | . . . . . . . Reprogrammed . | . . . . . . . Reused . | . . . . . . . Traps Extracted . | . . . . . . . Installed . | . . . . . . . Triggered . | . . . . . . . Machines | -11 -10 -10 -10 -9 -8 -7 ---------- Run | Yrd Mat Min Exi Min Mat Fac Machines Disabled 6 | . . . . . 2 4 Max in Single Turn 2 | . . . . . 1 2 Garrison Access 1 | . . . . . 1 . Machines Repaired . | . . . . . . . Machines Dismantled . | . . . . . . . Machines Sabotaged . | . . . . . . . Overloaded Fab Kills . | . . . . . . . Hacking | -11 -10 -10 -10 -9 -8 -7 --------- Run | Yrd Mat Min Exi Min Mat Fac Machines Accessed 26 | . 5 2 2 . 14 3 Terminals 15 | . 2 . . . 10 3 Fabricators . | . . . . . . . Repair Stations 2 | . 1 . . . 1 . Recycling Units 4 | . 2 . . . 2 . Scanalyzers . | . . . . . . . Garrison Access 1 | . . . . . 1 . Total Hacks 80 | . 18 2 2 . 50 8 Successful 47 | . 13 2 2 . 26 4 Failed 33 | . 5 . . . 24 4 Catastrophic 4 | . 1 . . . 1 2 Database Lockouts . | . . . . . . . Manual 37 | . 10 . 1 . 23 3 Terminals 62 | . 11 . . . 43 8 Fabricators . | . . . . . . . Repair Stations 5 | . 3 . . . 2 . Recycling Units 8 | . 4 . . . 4 . Scanalyzers . | . . . . . . . Garrison Access 1 | . . . . . 1 . Terminal Hacks 26 | . 4 2 2 . 16 2 Record 1 | . . . 1 . . . Robot Analysis 5 | . 3 . . . 2 . Prototype ID Bank 7 | . 1 . . . 6 . Open Door 2 | . . 2 . . . . Branch Access Points 1 | . . . . . 1 . Unreport Threat 3 | . . . . . 3 . Locate Traps 3 | . . . . . 2 1 Hauler Manifests 3 | . . . . . 2 1 Derelict Proto ID Bank 1 | . . . 1 . . . Fabricator Hacks . | . . . . . . . Repair Station Hacks 4 | . 2 . . . 2 . Scan Component 2 | . 1 . . . 1 . Repair 2 | . 1 . . . 1 . Recycling Unit Hacks 6 | . 3 . . . 3 . Report Inventory 4 | . 2 . . . 2 . Retrieve Components 2 | . 1 . . . 1 . Scanalyzer . | . . . . . . . Garrison Access Hacks 1 | . . . . . 1 . Seal Access 1 | . . . . . 1 . Unauthorized Hacks 10 | . 4 . . . 4 2 Terminals 9 | . 3 . . . 4 2 Assimilate 1 | . . . . . 1 . Botnet 7 | . 2 . . . 3 2 Operators 1 | . 1 . . . . . Fabricators . | . . . . . . . Repair Stations . | . . . . . . . Recycling Units 1 | . 1 . . . . . Reject 1 | . 1 . . . . . Scanalyzers . | . . . . . . . Garrison Access . | . . . . . . . Data Cores Recovered 1 | . . . . . 1 . Used . | . . . . . . . Hacking Detections 20 | . 5 . . . 12 3 Full Trace Events 4 | . 2 . . . 2 . Feedback Events . | . . . . . . . Feedback Blocked . | . . . . . . . Robot Schematics Acquired . | . . . . . . . Robots Built . | . . . . . . . Authchips . | . . . . . . . Time . | . . . . . . . Total Robot Build Rating . | . . . . . . . Part Schematics Acquired . | . . . . . . . Parts Built . | . . . . . . . Authchips . | . . . . . . . Time . | . . . . . . . Total Part Build Rating . | . . . . . . . Parts Repaired 2 | . 1 . . . 1 . Time 64 | . 26 . . . 38 . Parts Recycled . | . . . . . . . Recycled Matter . | . . . . . . . Retrieved Matter . | . . . . . . . Retrieved Components 12 | . 2 . . . 10 . Parts Scanalyzed . | . . . . . . . Part Schematics Acquired . | . . . . . . . Parts Damaged . | . . . . . . . Bothacking | -11 -10 -10 -10 -9 -8 -7 ------------ Run | Yrd Mat Min Exi Min Mat Fac Used RIF Installer . | . . . . . . . Robots Hacked 4 | . . . 4 . . . Non-combat 3 | . . . 3 . . . Combat 1 | . . . 1 . . . Robot Hacks Applied 4 | . . . 4 . . . parse_system 4 | . . . 4 . . . Relay Couplers Released . | . . . . . . . Fabnet Peak Effective % . | . . . . . . . Robots Rewired 1 | . . . . . . 1 Allies Hacked . | . . . . . . . Hacks Repelled . | . . . . . . . Allies | -11 -10 -10 -10 -9 -8 -7 -------- Run | Yrd Mat Min Exi Min Mat Fac Total Allies 1 | . . . . . . 1 Largest Group 1 | . . . . . . 1 Highest-Rated Group 21 | . . . . . . 21 Highest-Rated Ally 21 | . . . . . . 21 Total Orders . | . . . . . . . Ally Attacks 2 | . . . . . . 2 Total Damage 70 | . . . . . . 70 Kills . | . . . . . . . Allies Corrupted . | . . . . . . . Allies Melted . | . . . . . . . Intel | -11 -10 -10 -10 -9 -8 -7 ------- Run | Yrd Mat Min Exi Min Mat Fac Robot Analysis Total 5 | . 3 . . . 2 . Derelict Logs Recovered 5 | . . 2 . 3 . . Drone Launches . | . . . . . . . Drone Recoveries . | . . . . . . . Exploration | -11 -10 -10 -10 -9 -8 -7 ------------- Run | Yrd Mat Min Exi Min Mat Fac Turns Passed 5435 | 199 565 812 532 571 2426 330 Spaces Moved 2587 | 93 294 478 298 311 963 150 Core 5 | 5 . . . . . . Treads 681 | 88 294 299 . . . . Legs . | . . . . . . . Wheels 1901 | . . 179 298 311 963 150 Hover . | . . . . . . . Flight . | . . . . . . . Fastest Speed 50 | 50 160 115 175 175 175 175 Average Speed 171 | 154 160 153 175 175 180 189 Slowest Speed 240 | 160 160 240 175 175 190 190 Overloaded Moves . | . . . . . . . Propulsion Burnouts . | . . . . . . . Robots Hopped . | . . . . . . . Cave-ins Triggered 1 | . . . . . . 1 Exploration Rate (%) 53 | 6 49 97 69 67 81 3 Regions Visited 6 Branch Regions 3 Pre-discovered Areas 1 | . . 1 . . . . Known Exits Taken 1 | . . . . 1 . . Unknown Exits Taken 5 | 1 1 1 1 . 1 . Scrap Searched 1 | . . 1 . . . . Spaces Dug 39 | . . . . . 22 17 Terrain Destroyed 92 | . . . . . 22 70 Melee 5 | . . . . . 4 1 Projectile . | . . . . . . . AOE 87 | . . . . . 18 69 Terrain Rammed . | . . . . . . . Walls Destroyed . | . . . . . . . Machines Disabled . | . . . . . . . Actions | -11 -10 -10 -10 -9 -8 -7 --------- Run | Yrd Mat Min Exi Min Mat Fac Total 3230 | 118 352 522 308 325 1430 175 Wait 256 | . 29 6 . 1 218 2 Move 2581 | 92 293 477 297 310 962 150 Hop . | . . . . . . . Pick Up 53 | 5 7 10 4 2 25 . Fast Attach 25 | 6 . . . . 19 . Attach 12 | 1 1 . 1 1 7 1 Detach 5 | . 1 . 2 . 2 . Swap 44 | . 2 6 . 1 28 7 Drop 49 | . . 5 . . 44 . Fire 185 | 14 18 17 . 10 114 12 Melee 12 | . . . 4 . 5 3 Ram 5 | . . . . . 5 . Kick . | . . . . . . . Crush 3 | . 1 1 . . 1 . Escape Stasis . | . . . . . . . Rewire . | . . . . . . . Trap . | . . . . . . . Miscellaneous . | . . . . . . . Route ------- -11/Scrapyard -10/Materials (discovered 2 exits: [*Mat] / *Min) -10/Mines (discovered 3 exits: [*Mat x2] / *Exi) -10/Exiles -9/Mines (discovered 2 exits: *Mat x2) -8/Materials (discovered 2 exits: *Fac x2) -7/Factory History --------- Turn | Location | Event 11 | -11/Scrapyard | Discovered new exit (range 16) 200 | -11/Scrapyard | Entered Materials 301 | -10/Materials | Build established: Mutant 501 | -10/Materials | Discovered new exit (range 9) 528 | -10/Materials | Repaired Huge Storage Unit 690 | -10/Materials | Discovered new exit (range 15) 765 | -10/Materials | Entered Mines 860 | -10/Mines | Discovered new exit (range 14) 871 | -10/Mines | Learned Materials garrison access intel 874 | -10/Mines | Found the Drone Emporium 881 | -10/Mines | Found Prototype Device 928 | -10/Mines | Learned location of Zion (-7) 960 | -10/Mines | Deemed a non-threat by the Exiles lab entrance 960 | -10/Mines | Discovered new exit (range 5) 1369 | -10/Mines | Discovered new exit (range 5) 1416 | -10/Mines | Met a Derelict shopkeep closing up shop 1577 | -10/Mines | Entered Exiles 1629 | -10/Exiles | Met 8R-AWN 1656 | -10/Exiles | Met EX-HEX 1718 | -10/Exiles | Met EX-BIN 1762 | -10/Exiles | Aligned with FarCom system 1764 | -10/Exiles | Given EX-Vault access code 1835 | -10/Exiles | Opened EX-Vault 1848 | -10/Exiles | Found Longsword +1 1884 | -10/Exiles | Warned to stay clear of 0b10 Research branches 1929 | -10/Exiles | Met EX-DEC 2088 | -10/Exiles | Discovered new exit (range 14) 2109 | -10/Exiles | Left Exiles lab with Longsword +1 2109 | -10/Exiles | Entered Mines 2121 | -9/Mines | Met a Derelict bent on vengeance 2142 | -9/Mines | Identified exit to Materials 2222 | -9/Mines | Discovered exit to Materials (range 8) 2238 | -9/Mines | Learned Materials emergency access door positions 2394 | -9/Mines | Learned location of 1 exit from Proximity Caves 2434 | -9/Mines | Found a damaged Exp. Sensor Array with a note attached 2437 | -9/Mines | Found Prototype Device 2463 | -9/Mines | Received a Rocket Launcher from a helpful Derelict 2680 | -9/Mines | Entered Materials 2680 | -8/Materials | Evolved 4 slots: Propulsion x1, Utility x3 2682 | -8/Materials | Loaded intel: 1 garrison access location 2918 | -8/Materials | Identified Decoy Drone Bay 2963 | -8/Materials | Build established: Skirmisher 3063 | -8/Materials | Identified Exp. Sensor Array 3564 | -8/Materials | Discovered new exit (range 15) 4201 | -8/Materials | Build established: Hacker-Mutant 4655 | -8/Materials | Repaired Minigun 5014 | -8/Materials | Discovered new exit (range 16) 5106 | -8/Materials | Entered Factory 5106 | -7/Factory | Evolved 2 slots: Propulsion x1, Utility x1 5417 | -7/Factory | Crushed by falling debris 5417 | -7/Factory | System corruption reached 10% 5436 | -7/Factory | Self-destructed Last Messages --------------- rejected. 05420_ U-05 Engineer destroyed. 05421_ Slug penetrates Y-54 Guardian. 05423_ R-06 Scavenger collects Terrain Scan Processor. 05424_ Neutrino Reactor explodes. 05424_ Commando 4a destroyed. 05424_ >> Machine Analyzer network decryption results: 05424_ DSF Access x1 05424_ Terminal x1 05427_ R-06 Scavenger collects Wheel. 05430_ Nuclear Reactor explodes. 05430_ Y-54 Guardian destroyed. 05433_ The unstable cave ceiling collapses. 05433_ R-06 Scavenger destroyed. 05433_ Machine Analyzer destroyed. 05433_ Destroyed Machine Analyzer. 05434_ System corrupted: Matter fused (-7). 05434_ The unstable cave ceiling collapses. Map ----- +----------------------------------------------------+ | ????????????????????????????"""??????????????????? | | ????????????????????????????"""??????????????????? | | ????????????????????????????"""??????????????????? | | ?????????????????????????????????????????????????? | | ?????????????????????????????????????????????????? | | ?????????????????????????????????????????????????? | | ?????????????????????????????????????????????????? | | ?????????????????????????????????????????????????? | | ?????????????????????????????????????????????????? | | ?????????????????????????????????????????????????? | | ??????????????????????T ?????????????????????? | | ??????????????????????? """????????????????? | | ??????????????????????? ????????????????? | | ??????????????????????? ??????????????? | | ??????????????????????? ???????????????? | | ????????????????????#### # ???????????????? | | ???????????????????## ????????????????? | | ???????????????????# ?????????????????? | | ??????????????????## ! #?????????????????? | | ?????????????????## #?????????o???????? | | ?????????????????# [% #?????????????????" | | ?????????????????## * #####??????????????? | | ?????????????????# [ ?????????????"?" | | ??????????????????? = ###?????????????"?" | | ???????????????????### ###?????????????"?" | | ???????############# @ ##?????????????"?" | | ???????############## " ##?????????????"?" | | ??????? == " ##?????????????"?" | | ??????? =% " ##?????????????"?" | | ?????? #!! "" ##?????????????"?" | | ?????? % """" ##?????????????"?" | | ?????? # """" !##???????????????? | | ?????????######## # ##???????????????? | | ????????? ##### ############???????????????? | | ???????????????## ### ?????????????? | | ???????????????## ##########????????? | | ???????????????## gg g ?????? | | ???????????????## g ?????? | | ?????????????#### ?????? | | ?????????????#######+################## ??????? | | ?????????????## """"" ##########????????????? | | ?????????????## ""T"" ##????????????????????? | | ?????????????## ##????????????????????? | | ?????????????## """ """ ##????????"""?????????? | | ? ### """ """ ##????????"""?????????? | | ?############## """ """ ##????????"""?????????? | | ?## ^ ### ##????????????????????? | | ?## ^ ### """ """ !##????????????????????? | | ?## """ """ ### """ """ ##????????????????????? | | ?## """ """ ###! """ """ ##????????????????????? | +----------------------------------------------------+ Best States ------------- Heat Dissipation 45 Energy Generation 14 Energy Capacity 280 Matter Stores 300 Matter Capacity 300 Sight Range 16 Terrain Scan Range 16 Terrain Scan Density 10 Armor Coverage 225 Resistance: TH 15 Evasion (%) 40 Recoil Reduction 2 Offensive Hacking 10 Defensive Hacking 10 Item Schematics ----------------- None Robot Schematics ------------------ None Fabricated ------------ Nothing Alien Tech Used ----------------- None Achievements -------------- None Challenges ------------ None Game ------ Seed GhostSurveybotSpear Manual? 0 Play Time 01:03:52 Cumulative 122.1 hours Start 2024.06.01 @ 19:08:56 End 2024.06.01 @ 20:24:54 Sessions 1 Manual Loads 0 Difficulty Rogue Special Mode None Game No. 60 Rogue 60 Adventurer 0 Explorer 0 Win Type - Total 0 Types 0/0/0/0/0/0/0/0/0 Lore% 52 Gallery% 57 Achievement% 45 Wizard Run 0 Options --------- Layout 2 ASCII 0 Keyboard 0 Movement Mouse Keybinds 0 Fullscreen 1 Font 32/SmallcapsGlow Map View 50x44 Zoom Use 0% Tactical HUD 1 Map Filters NONE Filters NONE Steam 1 RUN: c904e6b6-26ef-439d-ae30-644bc919d190